[Event "*** Titled Tuesday Blitz"]
[Site "Chess.com"]
[Date "2020.04.21"]
[Round "4"]
[White "GamayevOleg"]
[Black "AsaHoffmann"]
[Result "0-1"]
[WhiteElo "2530"]
[BlackElo "2342"]
[TimeControl "180+1"]
[EndTime "10:37:53 PDT"]
[Termination "AsaHoffmann won by resignation"]

1. d3 {[%clk 0:03:00.9]} 1... d6 {[%clk 0:02:56.6]} 2. e4 {[%clk 0:03:01.8]}
2... c6 {[%clk 0:02:53.8]} 3. Nf3 {[%clk 0:03:02.7]} 3... g6 {[%clk 0:02:53.1]}
4. Be2 {[%clk 0:03:03.6]} 4... Bg7 {[%clk 0:02:52.6]} 5. O-O {[%clk 0:03:04.5]}
5... Nd7 {[%clk 0:02:51.4]} 6. c3 {[%clk 0:03:04.7]} 6... Ngf6 {[%clk
0:02:50.5]} 7. a4 {[%clk 0:03:05.1]} 7... a5 {[%clk 0:02:49.7]} 8. h3 {[%clk
0:03:05.2]} 8... O-O {[%clk 0:02:48.7]} 9. Nbd2 {[%clk 0:03:05.6]} 9... Qc7
{[%clk 0:02:47.7]} 10. d4 {[%clk 0:03:04.4]} 10... e5 {[%clk 0:02:46.5]} 11.
dxe5 {[%clk 0:03:05.3]} 11... dxe5 {[%clk 0:02:46.1]} 12. Qc2 {[%clk 0:03:05]}
12... Nc5 {[%clk 0:02:42.3]} 13. Re1 {[%clk 0:03:05.5]} 13... Re8 {[%clk
0:02:41.6]} 14. b3 {[%clk 0:03:03.7]} 14... b6 {[%clk 0:02:41]} 15. Bc4 {[%clk
0:03:02.5]} 15... Be6 {[%clk 0:02:39.3]} 16. Ba3 {[%clk 0:03:02.3]} 16... Bf8
{[%clk 0:02:38]} 17. Bxc5 {[%clk 0:03:01]} 17... Bxc5 {[%clk 0:02:36.5]} 18.
Bxe6 {[%clk 0:03:01.3]} 18... Rxe6 {[%clk 0:02:35]} 19. Nc4 {[%clk 0:03:01.1]}
19... Kg7 {[%clk 0:02:30.3]} 20. Rad1 {[%clk 0:03:00]} 20... h6 {[%clk
0:02:29.1]} 21. Ncd2 {[%clk 0:02:56.8]} 21... Rd8 {[%clk 0:02:24.3]} 22. Nf1
{[%clk 0:02:56]} 22... Red6 {[%clk 0:02:22]} 23. Rxd6 {[%clk 0:02:55.8]} 23...
Qxd6 {[%clk 0:02:19.9]} 24. Ng3 {[%clk 0:02:45.4]} 24... Qd3 {[%clk 0:02:14]}
25. Qxd3 {[%clk 0:02:45.5]} 25... Rxd3 {[%clk 0:02:13.1]} 26. Rc1 {[%clk
0:02:46.2]} 26... Nd7 {[%clk 0:02:02.8]} 27. Kf1 {[%clk 0:02:46]} 27... b5
{[%clk 0:01:51.7]} 28. Ke2 {[%clk 0:02:45.1]} 28... Rd6 {[%clk 0:01:50.8]} 29.
axb5 {[%clk 0:02:43.5]} 29... cxb5 {[%clk 0:01:50.4]} 30. Rd1 {[%clk 0:02:43.4]}
30... Rxd1 {[%clk 0:01:43.7]} 31. Kxd1 {[%clk 0:02:43.8]} 31... Bxf2 {[%clk
0:01:43.1]} 32. Ne2 {[%clk 0:02:44.1]} 32... Bc5 {[%clk 0:01:41.9]} 33. Nc1
{[%clk 0:02:39]} 33... Kf6 {[%clk 0:01:40.6]} 34. Kc2 {[%clk 0:02:38.4]} 34...
Ke6 {[%clk 0:01:40.1]} 35. Nd3 {[%clk 0:02:38.7]} 35... Bd6 {[%clk 0:01:39.8]}
36. g4 {[%clk 0:02:37.3]} 36... f5 {[%clk 0:01:38.3]} 37. gxf5+ {[%clk 0:02:37]}
37... gxf5 {[%clk 0:01:38.2]} 38. Nd2 {[%clk 0:02:37.6]} 38... f4 {[%clk
0:01:37.7]} 39. Nf3 {[%clk 0:02:37]} 39... Nf6 {[%clk 0:01:37.3]} 40. Nd2 {[%clk
0:02:35.5]} 40... Bc7 {[%clk 0:01:33.9]} 41. Ne1 {[%clk 0:02:29.8]} 41... Bb6
{[%clk 0:01:33.4]} 42. Nef3 {[%clk 0:02:24.9]} 42... Be3 {[%clk 0:01:32.7]} 43.
Nf1 {[%clk 0:02:25.1]} 43... Nxe4 {[%clk 0:01:31.2]} 44. Nxe3 {[%clk 0:02:25.3]}
44... fxe3 {[%clk 0:01:31]} 45. Kd3 {[%clk 0:02:25.9]} 45... Nc5+ {[%clk
0:01:30.6]} 46. Kxe3 {[%clk 0:02:24.6]} 46... Nxb3 {[%clk 0:01:30.2]} 47. Kd3
{[%clk 0:02:23.5]} 47... a4 {[%clk 0:01:29.7]} 48. Kc2 {[%clk 0:02:23]} 48...
Nc5 {[%clk 0:01:29.5]} 49. Nh2 {[%clk 0:02:20.4]} 49... h5 {[%clk 0:01:28.5]}
50. Nf1 {[%clk 0:02:18.6]} 50... Kf5 {[%clk 0:01:27.5]} 51. Ng3+ {[%clk
0:02:18]} 51... Kg5 {[%clk 0:01:26.4]} 52. Nf1 {[%clk 0:02:14]} 52... Kf4 {[%clk
0:01:23.7]} 53. Kd2 {[%clk 0:02:12.3]} 53... h4 {[%clk 0:01:23.1]} 54. Ne3
{[%clk 0:02:11.8]} 54... Ne4+ {[%clk 0:01:22.7]} 55. Kd3 {[%clk 0:02:11.5]}
55... Nxc3 {[%clk 0:01:19]} 56. Ng2+ {[%clk 0:02:09.4]} 56... Kg3 {[%clk
0:01:18.6]} 57. Nxh4 {[%clk 0:02:09.8]} 57... Kxh4 {[%clk 0:01:17.4]} 58. Kxc3
{[%clk 0:02:10.2]} 58... Kxh3 {[%clk 0:01:17.2]} 0-1

[Event "*** Titled Tuesday Blitz"]
[Site "Chess.com"]
[Date "2020.04.21"]
[Round "4"]
[White "TERMINATOR_PC"]
[Black "LifeIsAllAboutChess23"]
[Result "1-0"]
[WhiteElo "2391"]
[BlackElo "2017"]
[TimeControl "180+1"]
[EndTime "10:37:55 PDT"]
[Termination "TERMINATOR_PC won by checkmate"]

1. e4 {[%clk 0:03:00.9]} 1... b6 {[%clk 0:02:59.8]} 2. d4 {[%clk 0:03:00.8]}
2... Bb7 {[%clk 0:03:00.1]} 3. Bd3 {[%clk 0:03:01.5]} 3... e6 {[%clk 0:03:00.1]}
4. Qe2 {[%clk 0:03:01.8]} 4... Nf6 {[%clk 0:03:00.3]} 5. Nf3 {[%clk 0:03:01]}
5... Be7 {[%clk 0:02:58.4]} 6. O-O {[%clk 0:02:58.2]} 6... d6 {[%clk 0:02:57.3]}
7. Re1 {[%clk 0:02:54]} 7... Nbd7 {[%clk 0:02:56.9]} 8. e5 {[%clk 0:02:46.2]}
8... dxe5 {[%clk 0:02:56.3]} 9. dxe5 {[%clk 0:02:47.1]} 9... Nd5 {[%clk
0:02:56.2]} 10. a3 {[%clk 0:02:37.5]} 10... c5 {[%clk 0:02:44.9]} 11. c4 {[%clk
0:02:34.9]} 11... Nc7 {[%clk 0:02:43.9]} 12. Be4 {[%clk 0:02:33.5]} 12... Qc8
{[%clk 0:02:39.4]} 13. Nc3 {[%clk 0:02:32.8]} 13... a6 {[%clk 0:02:37.3]} 14.
Bg5 {[%clk 0:02:29.2]} 14... Bxg5 {[%clk 0:02:35.6]} 15. Nxg5 {[%clk 0:02:30.1]}
15... h6 {[%clk 0:02:36.5]} 16. Bxb7 {[%clk 0:02:08.7]} 16... Qxb7 {[%clk
0:02:35.8]} 17. Nge4 {[%clk 0:02:09.4]} 17... O-O {[%clk 0:02:33.7]} 18. Rad1
{[%clk 0:02:09.9]} 18... Rad8 {[%clk 0:02:24.5]} 19. Nd6 {[%clk 0:02:10]} 19...
Qc6 {[%clk 0:02:24.5]} 20. f4 {[%clk 0:02:05]} 20... Ne8 {[%clk 0:02:23.9]} 21.
Nde4 {[%clk 0:01:55.6]} 21... Qc8 {[%clk 0:02:02]} 22. Qd3 {[%clk 0:01:34.1]}
22... Nc7 {[%clk 0:02:00.1]} 23. Nd6 {[%clk 0:01:33.5]} 23... Qb8 {[%clk
0:01:58.1]} 24. Qg3 {[%clk 0:01:31.4]} 24... Ne8 {[%clk 0:01:56.2]} 25. Nce4
{[%clk 0:01:24.3]} 25... Nxd6 {[%clk 0:01:55.6]} 26. Rxd6 {[%clk 0:01:21.9]}
26... Kh7 {[%clk 0:01:53.6]} 27. Red1 {[%clk 0:01:20.3]} 27... Rfe8 {[%clk
0:01:53.4]} 28. Qd3 {[%clk 0:01:19.6]} 28... Qa8 {[%clk 0:01:18.8]} 29. Nf6+
{[%clk 0:01:16.3]} 29... Kh8 {[%clk 0:01:13.5]} 30. Qh7# {[%clk 0:01:16.8]} 1-0

[Event "*** Titled Tuesday Blitz"]
[Site "Chess.com"]
[Date "2020.04.21"]
[Round "4"]
[White "albano87"]
[Black "Slovak_fighter2000"]
[Result "1-0"]
[WhiteElo "2381"]
[BlackElo "2540"]
[TimeControl "180+1"]
[EndTime "10:37:58 PDT"]
[Termination "albano87 won by resignation"]

1. d4 {[%clk 0:03:00.8]} 1... Nf6 {[%clk 0:02:59.6]} 2. Nf3 {[%clk 0:03:01]}
2... d5 {[%clk 0:02:58.3]} 3. g3 {[%clk 0:03:01.3]} 3... c6 {[%clk 0:02:52.8]}
4. Bg2 {[%clk 0:03:00.9]} 4... Bf5 {[%clk 0:02:52.1]} 5. O-O {[%clk 0:03:00]}
5... e6 {[%clk 0:02:51.2]} 6. c4 {[%clk 0:03:00]} 6... Be7 {[%clk 0:02:50.6]} 7.
Nc3 {[%clk 0:03:00.1]} 7... O-O {[%clk 0:02:49.1]} 8. Nd2 {[%clk 0:02:44.4]}
8... Nbd7 {[%clk 0:02:30.6]} 9. e4 {[%clk 0:02:39.4]} 9... dxe4 {[%clk
0:02:31.5]} 10. Ndxe4 {[%clk 0:02:39.2]} 10... Nxe4 {[%clk 0:02:30.9]} 11. Nxe4
{[%clk 0:02:39.3]} 11... Bxe4 {[%clk 0:02:29.8]} 12. Bxe4 {[%clk 0:02:40.2]}
12... Nf6 {[%clk 0:02:30]} 13. Bg2 {[%clk 0:02:38.6]} 13... Qb6 {[%clk
0:02:21.8]} 14. Be3 {[%clk 0:02:29.9]} 14... Qa6 {[%clk 0:02:15.1]} 15. b3
{[%clk 0:02:26.3]} 15... Rfd8 {[%clk 0:02:08.8]} 16. Qc2 {[%clk 0:02:24.8]}
16... Qa5 {[%clk 0:02:03]} 17. Rfd1 {[%clk 0:02:18.2]} 17... Qh5 {[%clk
0:01:59.5]} 18. h3 {[%clk 0:02:17.8]} 18... Qg6 {[%clk 0:01:51.7]} 19. Qxg6
{[%clk 0:02:17.1]} 19... hxg6 {[%clk 0:01:52.6]} 20. Kf1 {[%clk 0:02:17.5]}
20... a5 {[%clk 0:01:50.2]} 21. Ke2 {[%clk 0:02:15.1]} 21... a4 {[%clk
0:01:41.1]} 22. Kd3 {[%clk 0:02:08.4]} 22... axb3 {[%clk 0:01:39.4]} 23. axb3
{[%clk 0:02:08.3]} 23... Bb4 {[%clk 0:01:37.4]} 24. Kc2 {[%clk 0:02:07.1]} 24...
Kf8 {[%clk 0:01:33.6]} 25. Bd2 {[%clk 0:01:18.2]} 25... Rxa1 {[%clk 0:01:25.6]}
26. Bxb4+ {[%clk 0:01:17.8]} 26... Ke8 {[%clk 0:01:23.1]} 27. Rxa1 {[%clk
0:01:17.3]} 27... Rxd4 {[%clk 0:01:23.5]} 28. Ra8+ {[%clk 0:01:14.6]} 28... Kd7
{[%clk 0:01:22]} 29. Bc3 {[%clk 0:01:13.6]} 29... Rd6 {[%clk 0:01:18.5]} 30. c5
{[%clk 0:01:11.3]} 1-0

[Event "*** Titled Tuesday Blitz"]
[Site "Chess.com"]
[Date "2020.04.21"]
[Round "4"]
[White "bazar-wokzal"]
[Black "HanSchut"]
[Result "1-0"]
[WhiteElo "2527"]
[BlackElo "2260"]
[TimeControl "180+1"]
[EndTime "10:38:08 PDT"]
[Termination "bazar-wokzal won by resignation"]

1. e4 {[%clk 0:03:00.9]} 1... c5 {[%clk 0:02:59.6]} 2. c3 {[%clk 0:03:00.5]}
2... g6 {[%clk 0:02:59]} 3. d4 {[%clk 0:03:00]} 3... cxd4 {[%clk 0:02:59.9]} 4.
cxd4 {[%clk 0:02:59.8]} 4... d5 {[%clk 0:03:00.3]} 5. e5 {[%clk 0:02:59.5]} 5...
Nc6 {[%clk 0:03:00]} 6. Nc3 {[%clk 0:02:59.5]} 6... Nh6 {[%clk 0:02:59.4]} 7.
Bf4 {[%clk 0:02:58.8]} 7... f6 {[%clk 0:02:55.7]} 8. Qd2 {[%clk 0:02:57.1]} 8...
Nf7 {[%clk 0:02:53.4]} 9. Bb5 {[%clk 0:02:48.2]} 9... Bg7 {[%clk 0:02:39.5]} 10.
Nf3 {[%clk 0:02:45.9]} 10... O-O {[%clk 0:02:36.4]} 11. O-O {[%clk 0:02:40.2]}
11... Nxd4 {[%clk 0:02:13.1]} 12. Qxd4 {[%clk 0:02:33.7]} 12... fxe5 {[%clk
0:02:12.7]} 13. Nxe5 {[%clk 0:02:26.2]} 13... e6 {[%clk 0:01:17]} 14. Rae1
{[%clk 0:02:11.8]} 14... Qh4 {[%clk 0:01:10.6]} 15. g3 {[%clk 0:01:44.3]} 15...
Nxe5 {[%clk 0:01:02.6]} 16. Rxe5 {[%clk 0:01:35.7]} 16... Bxe5 {[%clk
0:00:54.9]} 17. Qxe5 {[%clk 0:01:35]} 17... Qf6 {[%clk 0:00:39.7]} 18. Re1
{[%clk 0:01:26.9]} 18... a6 {[%clk 0:00:32.1]} 19. Ba4 {[%clk 0:01:25.3]} 19...
b5 {[%clk 0:00:30.3]} 20. Bb3 {[%clk 0:01:24.6]} 20... b4 {[%clk 0:00:30.9]} 21.
Nxd5 {[%clk 0:01:19.5]} 1-0

[Event "*** Titled Tuesday Blitz"]
[Site "Chess.com"]
[Date "2020.04.21"]
[Round "4"]
[White "vugarrasulov"]
[Black "GMBenjaminBok"]
[Result "0-1"]
[WhiteElo "2720"]
[BlackElo "2882"]
[TimeControl "180+1"]
[EndTime "10:38:09 PDT"]
[Termination "GMBenjaminBok won by resignation"]

1. e4 {[%clk 0:03:00.9]} 1... c5 {[%clk 0:03:00.2]} 2. Nf3 {[%clk 0:03:00.8]}
2... d6 {[%clk 0:03:00.6]} 3. d4 {[%clk 0:03:01.4]} 3... cxd4 {[%clk 0:03:01.5]}
4. Nxd4 {[%clk 0:03:02.3]} 4... Nf6 {[%clk 0:03:02]} 5. Nc3 {[%clk 0:03:02.5]}
5... a6 {[%clk 0:03:02.5]} 6. Be3 {[%clk 0:03:03.1]} 6... e5 {[%clk 0:03:01.9]}
7. Nf3 {[%clk 0:03:03.6]} 7... Be7 {[%clk 0:03:01.4]} 8. Bc4 {[%clk 0:03:03]}
8... O-O {[%clk 0:03:01.3]} 9. O-O {[%clk 0:03:03.5]} 9... Nc6 {[%clk
0:03:01.6]} 10. Bg5 {[%clk 0:02:58.3]} 10... Be6 {[%clk 0:02:36.4]} 11. Bb3
{[%clk 0:02:57.5]} 11... Nd7 {[%clk 0:02:33]} 12. Bxe7 {[%clk 0:02:56.6]} 12...
Qxe7 {[%clk 0:02:33.9]} 13. Nd5 {[%clk 0:02:54.5]} 13... Qd8 {[%clk 0:02:32.1]}
14. Qe2 {[%clk 0:02:48.7]} 14... Nc5 {[%clk 0:02:31.6]} 15. Rfd1 {[%clk
0:02:49]} 15... Rc8 {[%clk 0:02:29.3]} 16. c3 {[%clk 0:02:48.2]} 16... Nxb3
{[%clk 0:02:24.1]} 17. axb3 {[%clk 0:02:49.1]} 17... Ne7 {[%clk 0:02:23.6]} 18.
c4 {[%clk 0:02:25.4]} 18... Nxd5 {[%clk 0:02:19.9]} 19. exd5 {[%clk 0:02:26.3]}
19... Bd7 {[%clk 0:02:18.4]} 20. b4 {[%clk 0:02:23.2]} 20... Qb6 {[%clk
0:02:11.2]} 21. c5 {[%clk 0:02:11.4]} 21... Qxb4 {[%clk 0:02:09.9]} 22. cxd6
{[%clk 0:02:11.3]} 22... f6 {[%clk 0:02:06.5]} 23. Nd2 {[%clk 0:02:04.7]} 23...
Rc2 {[%clk 0:01:37.5]} 24. Qe3 {[%clk 0:02:04.6]} 24... Qxd6 {[%clk 0:01:27.5]}
25. Ne4 {[%clk 0:02:03.5]} 25... Qb4 {[%clk 0:01:26.3]} 26. Rac1 {[%clk
0:01:57.7]} 26... Rfc8 {[%clk 0:01:21.1]} 27. Rxc2 {[%clk 0:01:45.8]} 27... Rxc2
{[%clk 0:01:22]} 28. h3 {[%clk 0:01:46]} 28... Rc4 {[%clk 0:01:01.7]} 29. f3
{[%clk 0:01:38.3]} 29... Qxb2 {[%clk 0:00:55.9]} 30. Qa7 {[%clk 0:01:34.2]}
30... Rc2 {[%clk 0:00:50.1]} 31. Qb8+ {[%clk 0:01:32.1]} 31... Kf7 {[%clk
0:00:42.3]} 0-1

[Event "*** Titled Tuesday Blitz"]
[Site "Chess.com"]
[Date "2020.04.21"]
[Round "4"]
[White "FearNoEvil12"]
[Black "erlesfar"]
[Result "0-1"]
[WhiteElo "2005"]
[BlackElo "2250"]
[TimeControl "180+1"]
[EndTime "10:38:10 PDT"]
[Termination "erlesfar won by resignation"]

1. e4 {[%clk 0:03:00.9]} 1... d6 {[%clk 0:02:49.1]} 2. Nc3 {[%clk 0:02:59.2]}
2... Nf6 {[%clk 0:02:48.1]} 3. f4 {[%clk 0:02:59.5]} 3... g6 {[%clk 0:02:47.8]}
4. Nf3 {[%clk 0:02:59.7]} 4... Bg7 {[%clk 0:02:47.7]} 5. Bc4 {[%clk 0:03:00.1]}
5... O-O {[%clk 0:02:47.3]} 6. f5 {[%clk 0:02:59.7]} 6... c6 {[%clk 0:02:44.8]}
7. Bb3 {[%clk 0:02:56.8]} 7... d5 {[%clk 0:02:44.2]} 8. e5 {[%clk 0:02:54.5]}
8... Ne4 {[%clk 0:02:42.6]} 9. fxg6 {[%clk 0:02:53]} 9... hxg6 {[%clk
0:02:39.6]} 10. d4 {[%clk 0:02:52.1]} 10... Bg4 {[%clk 0:02:34.9]} 11. h3 {[%clk
0:02:50.1]} 11... Bxf3 {[%clk 0:02:34.6]} 12. Qxf3 {[%clk 0:02:49.1]} 12... e6
{[%clk 0:02:33.1]} 13. O-O {[%clk 0:02:46.3]} 13... c5 {[%clk 0:02:24]} 14. Nxe4
{[%clk 0:02:31.3]} 14... dxe4 {[%clk 0:02:22.9]} 15. Qxe4 {[%clk 0:02:30.8]}
15... Qxd4+ {[%clk 0:02:22.7]} 16. Qxd4 {[%clk 0:02:30.4]} 16... cxd4 {[%clk
0:02:22.2]} 17. Bf4 {[%clk 0:02:29.8]} 17... Nc6 {[%clk 0:02:21.7]} 18. Rad1
{[%clk 0:02:27.7]} 18... Rfd8 {[%clk 0:02:20]} 19. Rfe1 {[%clk 0:02:21.8]} 19...
a5 {[%clk 0:02:18.2]} 20. Ba4 {[%clk 0:02:20.6]} 20... Nb4 {[%clk 0:02:15.2]}
21. a3 {[%clk 0:02:13.6]} 21... Nc6 {[%clk 0:02:06.7]} 22. Re4 {[%clk
0:02:10.9]} 22... Rac8 {[%clk 0:02:02.5]} 23. Kf2 {[%clk 0:01:47.8]} 23... Rd5
{[%clk 0:01:59.2]} 24. Ke2 {[%clk 0:01:42.4]} 24... Rc5 {[%clk 0:01:48.6]} 25.
Kd3 {[%clk 0:01:37.7]} 25... b5 {[%clk 0:01:46.6]} 26. Bb3 {[%clk 0:01:35.3]}
26... a4 {[%clk 0:01:44.5]} 27. Ba2 {[%clk 0:01:34.8]} 27... Nxe5+ {[%clk
0:01:32.9]} 28. Bxe5 {[%clk 0:01:32.8]} 28... Bxe5 {[%clk 0:01:32.5]} 29. Rd2
{[%clk 0:01:17.4]} 29... Kg7 {[%clk 0:01:30.1]} 30. Ree2 {[%clk 0:01:11.2]}
30... Bf4 {[%clk 0:01:26.7]} 31. Rd1 {[%clk 0:01:09.5]} 31... Be3 {[%clk
0:01:25.6]} 32. c3 {[%clk 0:01:00.1]} 32... e5 {[%clk 0:01:25]} 33. Rf1 {[%clk
0:00:52.1]} 33... f5 {[%clk 0:01:23.4]} 34. g4 {[%clk 0:00:48.4]} 34... e4+
{[%clk 0:01:22.9]} 0-1

[Event "*** Titled Tuesday Blitz"]
[Site "Chess.com"]
[Date "2020.04.21"]
[Round "4"]
[White "Philosopherrr"]
[Black "Justinz"]
[Result "1-0"]
[WhiteElo "2478"]
[BlackElo "2292"]
[TimeControl "180+1"]
[EndTime "10:38:11 PDT"]
[Termination "Philosopherrr won by resignation"]

1. e4 {[%clk 0:03:00.7]} 1... c5 {[%clk 0:02:57.7]} 2. Nf3 {[%clk 0:03:00.7]}
2... d6 {[%clk 0:02:57.7]} 3. Bb5+ {[%clk 0:02:53.8]} 3... Nd7 {[%clk
0:02:55.4]} 4. Ba4 {[%clk 0:02:53.8]} 4... Nf6 {[%clk 0:02:53.6]} 5. O-O {[%clk
0:02:53.8]} 5... Nxe4 {[%clk 0:02:45.1]} 6. Re1 {[%clk 0:02:46.8]} 6... Nf6
{[%clk 0:02:43.8]} 7. d4 {[%clk 0:02:39.3]} 7... cxd4 {[%clk 0:02:43.2]} 8. Nxd4
{[%clk 0:02:38.6]} 8... e6 {[%clk 0:01:41]} 9. Nb5 {[%clk 0:02:28.4]} 9... Be7
{[%clk 0:01:33.1]} 10. Nxd6+ {[%clk 0:02:27.9]} 10... Bxd6 {[%clk 0:01:33]} 11.
Qxd6 {[%clk 0:02:28.3]} 11... Qe7 {[%clk 0:01:30.6]} 12. Bf4 {[%clk 0:02:25.2]}
12... a6 {[%clk 0:01:30.5]} 13. c4 {[%clk 0:02:23.8]} 13... Qxd6 {[%clk
0:00:58.4]} 14. Bxd6 {[%clk 0:02:23.1]} 14... b5 {[%clk 0:00:52.9]} 15. cxb5
{[%clk 0:02:06]} 15... Nb6 {[%clk 0:00:51.7]} 16. Bb3 {[%clk 0:02:06.1]} 16...
axb5 {[%clk 0:00:51.5]} 17. Nc3 {[%clk 0:02:06.1]} 17... Bd7 {[%clk 0:00:51.7]}
18. Bc5 {[%clk 0:02:02.9]} 18... Na4 {[%clk 0:00:51.5]} 19. Bxa4 {[%clk
0:01:39.3]} 19... bxa4 {[%clk 0:00:52.4]} 20. b4 {[%clk 0:01:36.7]} 20... axb3
{[%clk 0:00:46]} 21. axb3 {[%clk 0:01:36.3]} 21... Rc8 {[%clk 0:00:46.5]} 22. b4
{[%clk 0:01:35.7]} 22... Bc6 {[%clk 0:00:45.2]} 23. f3 {[%clk 0:01:33.8]} 23...
Nd7 {[%clk 0:00:43.5]} 24. Bd6 {[%clk 0:01:30.2]} 24... f6 {[%clk 0:00:39.9]}
25. Rxe6+ {[%clk 0:01:29.1]} 25... Kf7 {[%clk 0:00:39.7]} 26. Re7+ {[%clk
0:01:29.8]} 26... Kg6 {[%clk 0:00:39.5]} 27. b5 {[%clk 0:01:25.9]} 1-0

[Event "*** Titled Tuesday Blitz"]
[Site "Chess.com"]
[Date "2020.04.21"]
[Round "4"]
[White "AlanZhang"]
[Black "adiosabu"]
[Result "0-1"]
[WhiteElo "2173"]
[BlackElo "2420"]
[TimeControl "180+1"]
[EndTime "10:38:12 PDT"]
[Termination "adiosabu won by resignation"]

1. e4 {[%clk 0:03:00]} 1... c5 {[%clk 0:02:59.5]} 2. Nf3 {[%clk 0:02:59.7]} 2...
Nc6 {[%clk 0:03:00.2]} 3. d4 {[%clk 0:02:59.7]} 3... cxd4 {[%clk 0:03:01.1]} 4.
Nxd4 {[%clk 0:03:00.2]} 4... e5 {[%clk 0:03:01.8]} 5. Nb5 {[%clk 0:02:56.7]}
5... a6 {[%clk 0:03:02.4]} 6. Nd6+ {[%clk 0:02:48.4]} 6... Bxd6 {[%clk
0:03:02.6]} 7. Qxd6 {[%clk 0:02:49.2]} 7... Qe7 {[%clk 0:03:03.4]} 8. Qxe7+
{[%clk 0:02:47.1]} 8... Ngxe7 {[%clk 0:03:02.5]} 9. Nc3 {[%clk 0:02:45.9]} 9...
d5 {[%clk 0:03:02.6]} 10. exd5 {[%clk 0:02:44]} 10... Nb4 {[%clk 0:03:02.6]} 11.
Bd3 {[%clk 0:02:44.5]} 11... Bf5 {[%clk 0:03:02.8]} 12. Ne4 {[%clk 0:02:31.9]}
12... O-O-O {[%clk 0:02:41]} 13. Bd2 {[%clk 0:01:43.9]} 13... Nxd3+ {[%clk
0:02:31.4]} 14. cxd3 {[%clk 0:01:44.8]} 14... Rxd5 {[%clk 0:02:29.1]} 15. Bb4
{[%clk 0:01:08.8]} 15... Nc6 {[%clk 0:02:25.1]} 16. Nd6+ {[%clk 0:01:06.3]}
16... Kb8 {[%clk 0:02:21.7]} 17. Nxf5 {[%clk 0:01:02.2]} 17... Nxb4 {[%clk
0:02:21.3]} 18. O-O {[%clk 0:00:55]} 18... g6 {[%clk 0:02:13]} 19. Nh6 {[%clk
0:00:49.6]} 19... f5 {[%clk 0:02:11.8]} 20. Rfd1 {[%clk 0:00:45.1]} 20... Nxd3
{[%clk 0:02:04.1]} 21. Nf7 {[%clk 0:00:40.8]} 21... Re8 {[%clk 0:02:03.1]} 22.
Ng5 {[%clk 0:00:39.3]} 22... Re7 {[%clk 0:02:00.1]} 23. Rd2 {[%clk 0:00:38]}
23... Red7 {[%clk 0:01:57.6]} 24. Rad1 {[%clk 0:00:35.9]} 24... h6 {[%clk
0:01:56.5]} 25. Nf7 {[%clk 0:00:23.6]} 25... h5 {[%clk 0:01:33.3]} 26. Nxe5
{[%clk 0:00:23]} 26... Rxe5 {[%clk 0:01:32.9]} 0-1

[Event "*** Titled Tuesday Blitz"]
[Site "Chess.com"]
[Date "2020.04.21"]
[Round "4"]
[White "ARMQUEEN"]
[Black "11kevin"]
[Result "0-1"]
[WhiteElo "2331"]
[BlackElo "2550"]
[TimeControl "180+1"]
[EndTime "10:38:16 PDT"]
[Termination "11kevin won by resignation"]

1. e4 {[%clk 0:03:00.9]} 1... e5 {[%clk 0:02:58.7]} 2. Nf3 {[%clk 0:02:59.1]}
2... Nc6 {[%clk 0:02:58.7]} 3. d4 {[%clk 0:02:56.3]} 3... exd4 {[%clk 0:02:57]}
4. Nxd4 {[%clk 0:02:56.5]} 4... Nf6 {[%clk 0:02:57]} 5. Nxc6 {[%clk 0:02:52.5]}
5... bxc6 {[%clk 0:02:57.9]} 6. e5 {[%clk 0:02:53.4]} 6... Ne4 {[%clk
0:02:57.7]} 7. Qf3 {[%clk 0:02:22]} 7... Nc5 {[%clk 0:02:44.1]} 8. Bc4 {[%clk
0:02:21.4]} 8... Ne6 {[%clk 0:02:42]} 9. O-O {[%clk 0:02:19.9]} 9... g6 {[%clk
0:02:40.6]} 10. Nc3 {[%clk 0:02:12.4]} 10... Bg7 {[%clk 0:02:39.4]} 11. Ne4
{[%clk 0:02:08.4]} 11... Bxe5 {[%clk 0:02:37.4]} 12. Bh6 {[%clk 0:01:57.2]}
12... d5 {[%clk 0:02:32.9]} 13. Rfe1 {[%clk 0:01:38.1]} 13... Qh4 {[%clk
0:02:18.7]} 14. g3 {[%clk 0:01:00.4]} 14... Qxh6 {[%clk 0:02:17.2]} 15. Nf6+
{[%clk 0:01:00.5]} 15... Bxf6 {[%clk 0:02:14.4]} 16. Bxd5 {[%clk 0:00:57.1]}
16... cxd5 {[%clk 0:02:09.7]} 17. Qxd5 {[%clk 0:00:57]} 17... Rb8 {[%clk
0:02:04.1]} 18. Qc6+ {[%clk 0:00:46.3]} 18... Bd7 {[%clk 0:02:00.6]} 19. Qd5
{[%clk 0:00:46.9]} 19... Qg5 {[%clk 0:01:52.9]} 20. Qd3 {[%clk 0:00:42.4]} 20...
Bc6 {[%clk 0:01:38.6]} 21. Rad1 {[%clk 0:00:32.2]} 21... O-O {[%clk 0:01:36.9]}
22. Qc4 {[%clk 0:00:28.9]} 22... Rb6 {[%clk 0:01:35]} 23. b3 {[%clk 0:00:27.4]}
23... Bb7 {[%clk 0:01:32.7]} 24. a4 {[%clk 0:00:27]} 24... a5 {[%clk 0:01:32.2]}
25. h4 {[%clk 0:00:23.6]} 25... Qf5 {[%clk 0:01:31.3]} 26. Rd3 {[%clk 0:00:21]}
26... Qh3 {[%clk 0:01:30.4]} 0-1

[Event "*** Titled Tuesday Blitz"]
[Site "Chess.com"]
[Date "2020.04.21"]
[Round "4"]
[White "Ekka83"]
[Black "dpruess"]
[Result "0-1"]
[WhiteElo "2243"]
[BlackElo "2459"]
[TimeControl "180+1"]
[EndTime "10:38:23 PDT"]
[Termination "dpruess won by resignation"]

1. e4 {[%clk 0:03:00.9]} 1... c5 {[%clk 0:02:58.3]} 2. Nf3 {[%clk 0:02:58.2]}
2... d6 {[%clk 0:02:58]} 3. d4 {[%clk 0:02:58]} 3... cxd4 {[%clk 0:02:58.9]} 4.
Qxd4 {[%clk 0:02:58.9]} 4... Nc6 {[%clk 0:02:54.5]} 5. Bb5 {[%clk 0:02:58.4]}
5... Qa5+ {[%clk 0:02:54.2]} 6. Nc3 {[%clk 0:02:55]} 6... Qxb5 {[%clk
0:02:54.3]} 7. Nxb5 {[%clk 0:02:54.5]} 7... Nxd4 {[%clk 0:02:54.3]} 8. Nfxd4
{[%clk 0:02:21]} 8... Kd8 {[%clk 0:02:53.7]} 9. Be3 {[%clk 0:02:17.7]} 9... Bd7
{[%clk 0:02:52.4]} 10. c4 {[%clk 0:02:04.7]} 10... a6 {[%clk 0:02:32.5]} 11. Nc3
{[%clk 0:02:02.3]} 11... Rc8 {[%clk 0:02:32.4]} 12. Nb3 {[%clk 0:01:22.5]} 12...
Rxc4 {[%clk 0:02:21.4]} 13. Na5 {[%clk 0:01:22]} 13... Rc8 {[%clk 0:01:42.7]}
14. Nxb7+ {[%clk 0:01:21]} 14... Ke8 {[%clk 0:01:42.6]} 15. Na5 {[%clk
0:01:16.8]} 15... Nf6 {[%clk 0:01:41.5]} 16. O-O {[%clk 0:01:16.2]} 16... e6
{[%clk 0:01:39]} 17. Rfd1 {[%clk 0:01:15]} 17... Be7 {[%clk 0:01:37.3]} 18. Nb7
{[%clk 0:01:13.4]} 18... Rc6 {[%clk 0:01:22.9]} 19. f4 {[%clk 0:01:07.5]} 19...
Ng4 {[%clk 0:01:07]} 20. Ba7 {[%clk 0:00:35]} 20... Rc7 {[%clk 0:00:59.1]} 21.
Nxd6+ {[%clk 0:00:34.6]} 21... Bxd6 {[%clk 0:00:58.5]} 22. Bb8 {[%clk
0:00:35.1]} 22... Bc5+ {[%clk 0:00:56.8]} 23. Kh1 {[%clk 0:00:32.4]} 23... Nf2+
{[%clk 0:00:55.6]} 0-1